fUSD/lending_fUSD_20250504
["ID","MTS","AMOUNT","RATE_DAILY","PERIOD"]
[359873177,1746395443810,-313.57,0.00019998,2]
[359873178,1746395443819,-497.02,0.00019998,2]
[359873179,1746395443828,-450.0,0.00019998,2]
[359873180,1746395443837,-152.7,0.00019998,2]
[359873181,1746395443847,-470.0,0.00019998,2]
[359873182,1746395443856,-450.0,0.00019998,2]
[359873183,1746395443866,-518.46,0.00019998,2]
[359873184,1746395443875,-300.0,0.00019998,2]
[359873185,1746395443884,-450.0,0.00019998,2]
[359873186,1746395443894,-450.0,0.00019998,2]
[359873187,1746395443903,-450.0,0.00019998,2]
[359873188,1746395443912,-490.0,0.00019998,2]
[359873189,1746395443921,-490.0,0.00019998,2]
[359873190,1746395443931,-450.0,0.00019998,2]
[359873191,1746395443940,-490.0,0.00019998,2]
[359873192,1746395443950,-450.0,0.00019998,2]
[359873193,1746395443959,-450.0,0.00019998,2]
[359873194,1746395443970,-450.0,0.00019998,2]
[359873195,1746395443980,-559.67,0.00019998,2]
[359873196,1746395443991,-567.28,0.00019998,2]
[359873197,1746395444001,-155.39610609,0.00019998,2]
[359873198,1746395444010,-450.0,0.00019998,2]
[359873199,1746395444019,-470.0,0.00019998,2]
[359873200,1746395444029,-450.0,0.00019998,2]
[359873201,1746395444038,-470.0,0.00019998,2]
[359873202,1746395444048,-470.0,0.00019998,2]
[359873203,1746395444057,-151.0,0.00019998,2]
[359873204,1746395444066,-151.0,0.00019998,2]
[359873205,1746395444075,-151.0,0.00019998,2]
[359873206,1746395444085,-450.0,0.00019998,2]
[359873207,1746395444095,-450.0,0.00019998,2]
[359873208,1746395444105,-450.0,0.00019998,2]
[359873209,1746395444115,-450.0,0.00019998,2]
[359873210,1746395444125,-450.0,0.00019998,2]
[359873211,1746395444145,-189.54,0.00019998,2]
[359873212,1746395444154,-154.39747,0.00019998,2]
[359873213,1746395444164,-490.0,0.00019998,2]
[359873214,1746395444174,-151.0,0.00019998,2]
[359873215,1746395444184,-151.0,0.00019998,2]
[359873216,1746395444194,-151.0,0.00019998,2]
[359873217,1746395444204,-490.0,0.00019998,2]
[359873218,1746395444214,-450.0,0.00019998,2]
[359873219,1746395444224,-297.62,0.00019998,2]
[359873220,1746395444233,-598.85,0.00019998,2]
[359873221,1746395444242,-598.85,0.00019998,2]
[359873222,1746395444251,-598.85,0.00019998,2]
[359873223,1746395444261,-598.85,0.00019998,2]
[359873224,1746395444270,-160.10649,0.00019998,2]
[359873225,1746395444280,-160.10649,0.00019998,2]
[359873226,1746395444289,-160.10649,0.00019998,2]
[359873227,1746395444299,-160.10649,0.00019998,2]
[359873228,1746395444308,-450.0,0.00019998,2]
[359873229,1746395444318,-160.10649,0.00019998,2]
[359873230,1746395444327,-450.0,0.00019998,2]
[359873231,1746395444336,-450.0,0.00019998,2]
[359873232,1746395444346,-160.10649,0.00019998,2]
[359873233,1746395444355,-450.0,0.00019998,2]
[359873234,1746395444375,-160.10649,0.00019998,2]
[359873235,1746395444390,-160.10649,0.00019998,2]
[359873236,1746395444403,-450.0,0.00019998,2]
[359873237,1746395444417,-450.0,0.00019998,2]
[359873238,1746395444428,-450.0,0.00019998,2]
[359873239,1746395444439,-450.0,0.00019998,2]
[359873240,1746395444450,-450.0,0.00019998,2]
[359873241,1746395444463,-450.0,0.00019998,2]
[359873242,1746395444476,-450.0,0.00019998,2]
[359873243,1746395444488,-450.0,0.00019998,2]
[359873244,1746395444499,-450.0,0.00019998,2]
[359873245,1746395444511,-450.0,0.00019998,2]
[359873246,1746395444523,-450.0,0.00019998,2]
[359873247,1746395444536,-10275.14,0.00019998,2]
[359873248,1746395444549,-10275.14,0.00019998,2]
[359873249,1746395444560,-10275.14,0.00019998,2]
[359873250,1746395444572,-10275.14,0.00019998,2]
[359873251,1746395444582,-150.0,0.00019998,2]
[359873252,1746395444592,-450.0,0.00019998,2]
[359873253,1746395444605,-450.0,0.00019998,2]
[359873254,1746395444617,-450.0,0.00019998,2]
[359873255,1746395444628,-450.0,0.00019998,2]
[359873256,1746395444640,-773.39,0.00019998,2]
[359873257,1746395444651,-773.39,0.00019998,2]
[359873258,1746395444663,-773.39,0.00019998,2]
[359873259,1746395444675,-773.39,0.00019998,2]
[359873260,1746395444687,-150.0,0.00019998,2]
[359873261,1746395444703,-982.19,0.00019998,2]
[359873262,1746395444715,-982.19,0.00019998,2]
[359873263,1746395444726,-982.19,0.00019998,2]
[359873264,1746395444738,-151.0,0.00019998,2]
[359873265,1746395444749,-151.0,0.00019998,2]
[359873266,1746395444760,-1101.13,0.00019998,2]
[359873267,1746395444773,-1101.13,0.00019998,2]
[359873268,1746395444785,-625.35136926,0.00019998,2]
[359873269,1746395444813,-475.77863074,0.00019998,2]
[359873270,1746395444826,-5.13100164,0.00019998,2]
[359873271,1746395444839,-1049.4999999,0.00019998,2]
[359873281,1746395445936,-180.4104,0.00019898,2]
[359873282,1746395445949,-1327.53032934,0.00019898,2]
[359873283,1746395445959,-548.43285154,0.00019997,2]
[359873284,1746395445970,-470.0,0.00019997,2]
[359873285,1746395445981,-752.83,0.00019997,2]
[359873286,1746395445991,-46.49899846,0.00019998,2]
[359873287,1746395446001,-320.4,0.00019998,2]
[359873288,1746395446011,-151.0,0.00019998,2]
[359873289,1746395446024,-450.0,0.00019998,2]
[359873290,1746395446035,-151.0,0.00019998,2]
[359873291,1746395446047,-185.019699,0.00019998,2]
[359873292,1746395446058,-450.0,0.00019998,2]
[359873293,1746395446069,-450.0,0.00019998,2]
[359873294,1746395446080,-151.0,0.00019998,2]
[359873295,1746395446092,-450.0,0.00019998,2]
[359873296,1746395446104,-450.0,0.00019998,2]
[359873297,1746395446117,-450.0,0.00019998,2]
[359873298,1746395446129,-264.27,0.00019998,2]
[359873299,1746395446139,-450.0,0.00019998,2]
[359873300,1746395446150,-473.83,0.00019998,2]
[359873301,1746395446160,-470.0,0.00019998,2]
[359873302,1746395446171,-960.32,0.00019998,2]
[359873303,1746395446182,-100.75772166,0.00019998,2]
[359873304,1746395446207,-329.4,0.00019998,2]
[359873309,1746395446383,-450.0,0.00019996,2]
[359873310,1746395446393,-426.76616671,0.00019998,2]
[359873311,1746395446406,-103.39611163,0.00019998,2]
[359873312,1746395446417,-960.32,0.00019998,2]
[359873313,1746395446428,-960.32,0.00019998,2]
[359873314,1746395446438,-500.0,0.00019998,2]
[359873315,1746395446449,-500.0,0.00019998,2]
[359873316,1746395446460,-555.38,0.00019998,2]
[359873317,1746395446471,-500.0,0.00019998,2]
[359873318,1746395446483,-450.0,0.00019998,2]
[359873319,1746395446495,-320.88388837,0.00019998,2]
[359873320,1746395446507,-129.11611163,0.00019998,2]
[359873321,1746395446518,-450.0,0.00019998,2]
[359873322,1746395446528,-526.73388837,0.00019998,2]
[359873323,1746395446651,-418.80611163,0.00019998,2]
[359873324,1746395446663,-60.76888837,0.00019998,2]
[359873346,1746395478169,281.04,0.00017124,2]
[359873347,1746395478566,281.04,0.00019388,2]
[359873348,1746395972235,-173.39357131,0.00019887,2]
[359873349,1746396138623,1000.0,0.00018941,2]
[359873362,1746396605509,3401.92,0.00018973,2]
[359873370,1746396631424,-151.0,0.000198,2]
[359873371,1746396631434,-250.0,0.00019821,2]
[359873372,1746396631444,-207.4,0.00019885,2]
[359873373,1746396631454,-300.0,0.00019896,2]
[359873374,1746396631465,-1200.0,0.00019896,2]
[359873375,1746396631476,-706.1829615,0.00019896,2]
[359873376,1746396631485,-448.62790705,0.00019897,2]
[359873377,1746396631495,-3453.79691945,0.00019897,2]
[359873378,1746396631532,-3484.01732,0.00019897,2]
[359873379,1746396631544,-14382.81845001,0.00019897,2]
[359873380,1746396631555,-33497.78193408,0.00019897,2]
[359873381,1746396631591,-2699.96378707,0.00019897,2]
[359873382,1746396631600,-448.62790703,0.00019897,2]
[359873383,1746396631610,-448.62790703,0.00019898,2]
[359873384,1746396631619,-546.8003,0.00019898,2]
[359873385,1746396631628,-159.40114631,0.00019898,2]
[359873386,1746396631637,-448.62790703,0.00019898,2]
[359873387,1746396631647,-26.25104553,0.00019898,2]
[359873388,1746396631658,-404.4750197,0.00019898,2]
[359873432,1746396637614,-911.55786599,0.00019898,2]
[359873433,1746396637623,-1342.28393116,0.00019898,2]
[359873434,1746396637632,-448.62790703,0.00019898,2]
[359873435,1746396637641,-1119.89029582,0.00019898,2]
[359873436,1746396637779,-222.39363534,0.00019898,2]
[359873437,1746396637789,-448.62790703,0.00019899,2]
[359873438,1746396637798,-318.93326202,0.00019899,2]
[359873439,1746396637840,-386.49178017,0.00019899,2]
[359873592,1746396639600,-437.7925,0.00019899,2]
[359873594,1746396639660,-199.06638897,0.00019899,2]
[359873596,1746396639670,-1342.28393116,0.00019899,2]
[359873598,1746396639681,-448.62790703,0.00019899,2]
[359873600,1746396639690,-1342.28393116,0.00019899,2]
[359873602,1746396639700,-448.62790703,0.00019899,2]
[359873604,1746396639709,-1342.28393116,0.00019899,2]
[359873606,1746396639718,-1342.28393116,0.000199,2]
[359873608,1746396639727,-448.62790703,0.000199,2]
[359873610,1746396639737,-10328.10954288,0.000199,2]
[359873612,1746396639746,-448.62790703,0.000199,2]
[359873614,1746396639755,-5501.11739077,0.000199,2]
[359873616,1746396639765,-41.54726968,0.00019973,2]
[359873618,1746396639776,-458.45273032,0.00019973,2]
[359873620,1746396639786,-170.7841402,0.00019973,2]
[359873622,1746396639798,-329.2158598,0.00019973,2]
[359873624,1746396639807,-500.0,0.00019973,2]
[359873626,1746396639817,-166.23334412,0.00019976,2]
[359873628,1746396639827,-797.0,0.00019982,2]
[359873630,1746396639836,-20890.34087118,0.00019992,2]
[359873632,1746396639846,-210439.10926388,0.00019992,2]
[359873637,1746396639878,250.0,0.00017,2]
[359873741,1746396640932,200.0,0.00019,2]
[359873745,1746396640956,100.0,0.00019,2]
[359874071,1746396645020,-1342.28393116,0.000199,2]
[359874073,1746396645030,-7612.69081107,0.00019992,2]
[359874075,1746396645042,-1322.60357744,0.00019992,2]
[359874077,1746396645053,-5515.8,0.00019992,2]
[359874084,1746396645138,-1992.86795015,0.00019992,2]
[359874085,1746396645197,-16899.01657621,0.00019992,2]
[359874087,1746396645376,-3434.0,0.00019992,2]
[359874088,1746396645389,-535.26750463,0.00019992,2]
[359874089,1746396645441,-955.0,0.00019992,2]
[359874090,1746396645501,-12292.68316476,0.00019992,2]
[359874096,1746396646433,-16025.8198784,0.00019992,2]
[359874098,1746396646445,-669.012924,0.00019992,2]
[359874099,1746396646458,-1936.0,0.00019992,2]
[359874100,1746396646486,-3010.22088828,0.00019992,2]
[359874101,1746396646499,-306.43856122,0.00019992,2]
[359874102,1746396646516,-1269.7494336,0.00019992,2]
[359874103,1746396653876,252.93,0.00017521,2]
[359874104,1746396728492,227.160964,7.945e-05,2]
[359874105,1746396751686,200.18,0.00019093,2]
[359874106,1746396905821,156.72,0.00019,2]
[359874107,1746396907442,156.72,0.00019,2]
[359874108,1746396909072,156.72,0.00019,2]
[359874109,1746396912662,156.72,0.00019,2]
[359874110,1746396914383,156.72,0.00019,2]
[359874111,1746397036531,185.7365,0.000248,34]
[359874112,1746397036637,185.7365,0.000298,44]
[359874113,1746397036678,185.73649,0.000273,39]
[359874114,1746397206128,2186.76,0.00019,2]
[359874115,1746397207787,2186.76,0.00019,2]
[359874116,1746397209502,2186.76,0.00019,2]
[359874117,1746397212978,2186.76,0.00019,2]
[359874118,1746397342027,185.73649,0.0002595,36]
[359874119,1746397372861,1000.0,0.00018984,2]
[359874120,1746397491692,900.0,0.0003,31]
[359874121,1746397506689,3309.76,0.00019,2]
[359874122,1746397508331,3309.76,0.00019,2]
[359874123,1746397516216,1800.0,0.0003,30]
[359874141,1746397711702,650.29,0.0003,30]
[359874167,1746397831830,-451.86647784,0.0001975,2]
[359874168,1746397831840,-149.0194498,0.00019785,2]
[359874169,1746397831852,-103.9105502,0.00019785,2]
[359874170,1746397831861,-185.73649,0.0001979,23]
[359874171,1746397831870,-207.4,0.00019886,2]
[359874172,1746397831879,-173.3936,0.00019892,2]
[359874173,1746397831888,-1579.08740171,0.00019896,2]
[359874174,1746397831900,-650.59822651,0.00019896,2]
[359874175,1746397831909,-1200.0,0.00019896,2]
[359874176,1746397831918,-543.22443404,0.00019896,2]
[359874177,1746397831930,-1686.46119409,0.00019896,2]
[359874178,1746397831939,-213.53879591,0.00019897,2]
[359874191,1746397837724,-879.20342316,0.00019897,2]
[359874192,1746397837735,-1136.94340906,0.00019897,2]
[359874193,1746397837745,-507.0595,0.00019897,2]
[359874194,1746397837754,-2229.68562813,0.00019897,2]
[359874195,1746397837763,-2229.68562813,0.00019898,2]
[359874196,1746397837772,-1452.20026759,0.00019898,2]
[359874197,1746397837781,-2229.68562813,0.00019898,2]
[359874198,1746397837790,-1452.20026755,0.00019898,2]
[359874199,1746397837799,-1452.20026755,0.00019898,2]
[359874200,1746397837809,-2229.68562813,0.00019899,2]
[359874201,1746397837818,-1452.20026755,0.00019899,2]
[359874202,1746397837827,-1452.20026755,0.00019899,2]
[359874203,1746397837836,-2229.68562813,0.00019899,2]
[359874204,1746397837845,-1452.20026755,0.00019899,2]
[359874205,1746397837854,-1452.20026755,0.00019899,2]
[359874206,1746397837863,-2229.68562813,0.000199,2]
[359874207,1746397837872,-1452.20026755,0.000199,2]
[359874208,1746397837882,-1452.20026755,0.000199,2]
[359874209,1746397837891,-2229.68562813,0.000199,2]
[359874210,1746397837899,-453.99227328,0.000199,2]
[359874211,1746397837911,-2428.61955236,0.000199,2]
[359874212,1746397837921,-936.60724661,0.000199,2]
[359874213,1746397837932,-1156.71180127,0.000199,2]
[359874214,1746397837952,-478.39074372,0.000199,2]
[359874215,1746397837961,-1452.20026755,0.000199,2]
[359874216,1746397837970,-500.0,0.00019973,2]
[359874217,1746397837979,-500.0,0.00019973,2]
[359874218,1746397837988,-500.0,0.00019973,2]
[359874219,1746397837997,-789.03771367,0.00019983,2]
[359874220,1746397838008,-7.96228633,0.00019983,2]
[359874221,1746397838017,-390.8244268,0.00019991,2]
[359874227,1746397841603,-79.1755732,0.00019991,2]
[359874228,1746397841632,-336.53442559,0.00019991,2]
[359874230,1746397841671,-133.46557441,0.00019991,2]
[359874231,1746397841680,-470.0,0.00019991,2]
[359874232,1746397841690,-450.0,0.00019991,2]
[359874233,1746397841699,-450.0,0.00019991,2]
[359874234,1746397841710,-450.0,0.00019991,2]
[359874235,1746397841883,-450.0,0.00019991,2]
[359874236,1746397841893,-42793.01450845,0.00019992,2]
[359874237,1746397841903,-470.0,0.00019996,2]
[359874238,1746397841913,-203.41609389,0.00019996,2]
[359874239,1746397841922,-155.13200951,0.00019996,2]
[359874240,1746397841931,-450.0,0.00019996,2]
[359874241,1746397841940,-450.0,0.00019996,2]
[359874242,1746397841951,-450.0,0.00019996,2]
[359874243,1746397841960,-450.0,0.00019996,2]
[359874244,1746397841969,-490.0,0.00019996,2]
[359874245,1746397841979,-450.0,0.00019996,2]
[359874246,1746397841988,-545.77390001,0.00019996,2]
[359874247,1746397841998,-490.0,0.00019996,2]
[359874248,1746397842007,-450.0,0.00019996,2]
[359874249,1746397842016,-490.0,0.00019996,2]
[359874250,1746397842026,-169.94,0.00019996,2]
[359874251,1746397842035,-450.0,0.00019996,2]
[359874252,1746397842044,-550.67240726,0.00019996,2]
[359874253,1746397842053,-450.0,0.00019996,2]
[359874254,1746397842063,-450.0,0.00019996,2]
[359874255,1746397842071,-450.0,0.00019996,2]
[359874256,1746397842081,-450.0,0.00019996,2]
[359874257,1746397842090,-450.0,0.00019996,2]
[359874258,1746397842099,-450.0,0.00019996,2]
[359874259,1746397842109,-490.0,0.00019996,2]
[359874260,1746397842118,-450.0,0.00019996,2]
[359874261,1746397842127,-450.0,0.00019996,2]
[359874262,1746397842136,-450.0,0.00019996,2]
[359874263,1746397842147,-450.0,0.00019996,2]
[359874264,1746397842158,-450.0,0.00019996,2]
[359874265,1746397842167,-450.0,0.00019996,2]
[359874266,1746397842176,-450.0,0.00019996,2]
[359874267,1746397842185,-450.0,0.00019996,2]
[359874268,1746397842195,-450.0,0.00019996,2]
[359874269,1746397842204,-416.712002,0.00019996,2]
[359874270,1746397842213,-450.0,0.00019996,2]
[359874271,1746397842222,-450.0,0.00019996,2]
[359874272,1746397842232,-490.0,0.00019996,2]
[359874273,1746397842241,-450.0,0.00019996,2]
[359874274,1746397842251,-450.0,0.00019996,2]
[359874275,1746397842261,-450.0,0.00019996,2]
[359874276,1746397842270,-450.0,0.00019996,2]
[359874277,1746397842280,-450.0,0.00019996,2]
[359874278,1746397842289,-490.0,0.00019996,2]
[359874279,1746397842299,-450.0,0.00019996,2]
[359874280,1746397842309,-500.0,0.00019996,2]
[359874281,1746397842318,-531.25944655,0.00019996,2]
[359874282,1746397842328,-450.0,0.00019996,2]
[359874283,1746397842337,-490.0,0.00019996,2]
[359874284,1746397842346,-155.39610609,0.00019996,2]
[359874285,1746397842355,-450.0,0.00019996,2]
[359874286,1746397842364,-450.0,0.00019996,2]
[359874287,1746397842374,-450.0,0.00019996,2]
[359874288,1746397842383,-450.0,0.00019996,2]
[359874289,1746397842393,-450.0,0.00019996,2]
[359874290,1746397842402,-450.0,0.00019996,2]
[359874291,1746397842411,-450.0,0.00019996,2]
[359874292,1746397842421,-490.0,0.00019996,2]
[359874293,1746397842431,-536.02996085,0.00019996,2]
[359874294,1746397842440,-519.61844389,0.00019996,2]
[359874295,1746397842449,-450.0,0.00019996,2]
[359874296,1746397842458,-450.0,0.00019996,2]
[359874297,1746397842467,-450.0,0.00019996,2]
[359874298,1746397842477,-506.94184934,0.00019996,2]
[359874300,1746397842486,-490.0,0.00019996,2]
[359874302,1746397842495,-450.0,0.00019996,2]
[359874304,1746397842504,-507.73408408,0.00019996,2]
[359874305,1746397842513,-152.7,0.00019996,2]
[359874306,1746397842522,-352.60015615,0.00019996,2]
[359874307,1746397842532,-500.0,0.00019996,2]
[359874308,1746397842541,-450.0,0.00019996,2]
[359874309,1746397842550,-542.23,0.00019996,2]
[359874310,1746397842559,-450.0,0.00019996,2]
[359874311,1746397842568,-450.0,0.00019996,2]
[359874312,1746397842578,-455.71051693,0.00019996,2]
[359874313,1746397842587,-510.35869014,0.00019996,2]
[359874314,1746397842596,-543.41197594,0.00019996,2]
[359874315,1746397842606,-450.0,0.00019996,2]
[359874316,1746397842615,-450.0,0.00019996,2]
[359874317,1746397842623,-470.0,0.00019996,2]
[359874318,1746397842633,-470.0,0.00019996,2]
[359874319,1746397842642,-578.40112117,0.00019996,2]
[359874321,1746397842652,-478.52681928,0.00019996,2]
[359874322,1746397842661,-450.0,0.00019996,2]
[359874325,1746397842670,-450.0,0.00019996,2]
[359874328,1746397842680,-470.0,0.00019996,2]
[359874331,1746397842692,-506.63570183,0.00019996,2]
[359874332,1746397842703,-450.0,0.00019996,2]
[359874334,1746397842712,-450.0,0.00019996,2]
[359874335,1746397842722,-450.0,0.00019996,2]
[359874336,1746397842731,-450.0,0.00019996,2]
[359874337,1746397842740,-450.0,0.00019996,2]
[359874339,1746397842750,-470.0,0.00019996,2]
[359874340,1746397842759,-541.01590839,0.00019996,2]
[359874341,1746397842768,-450.0,0.00019996,2]
[359874342,1746397842778,-569.37150531,0.00019996,2]
[359874343,1746397842788,-450.0,0.00019996,2]
[359874344,1746397842798,-450.0,0.00019996,2]
[359874345,1746397842807,-254.1504294,0.00019996,2]
[359874346,1746397842817,-151.0,0.00019996,2]
[359874347,1746397842826,-509.72017449,0.00019996,2]
[359874348,1746397842836,-450.0,0.00019996,2]
[359874349,1746397842845,-450.0,0.00019996,2]
[359874350,1746397842854,-450.0,0.00019996,2]
[359874351,1746397842863,-450.0,0.00019996,2]
[359874352,1746397842873,-450.0,0.00019996,2]
[359874353,1746397842882,-150.88,0.00019996,2]
[359874354,1746397842892,-490.0,0.00019996,2]
[359874355,1746397842901,-450.0,0.00019996,2]
[359874356,1746397842911,-450.0,0.00019996,2]
[359874357,1746397842921,-490.0,0.00019996,2]
[359874358,1746397842931,-270.72,0.00019996,2]
[359874359,1746397842940,-450.0,0.00019996,2]
[359874360,1746397842950,-490.0,0.00019996,2]
[359874361,1746397842959,-450.0,0.00019996,2]
[359874362,1746397842968,-450.0,0.00019996,2]
[359874363,1746397842978,-450.0,0.00019996,2]
[359874364,1746397842987,-490.0,0.00019996,2]
[359874365,1746397842996,-450.0,0.00019996,2]
[359874366,1746397843005,-450.0,0.00019996,2]
[359874367,1746397843014,-450.0,0.00019996,2]
[359874368,1746397843023,-500.0,0.00019996,2]
[359874369,1746397843033,-450.0,0.00019996,2]
[359874370,1746397843042,-450.0,0.00019996,2]
[359874371,1746397843051,-450.0,0.00019996,2]
[359874372,1746397843060,-150.0,0.00019996,2]
[359874373,1746397843069,-511.32,0.00019996,2]
[359874374,1746397843078,-150.0,0.00019996,2]
[359874375,1746397843088,-450.0,0.00019996,2]
[359874376,1746397843098,-450.0,0.00019996,2]
[359874377,1746397843108,-450.0,0.00019996,2]
[359874378,1746397843117,-490.0,0.00019996,2]
[359874380,1746397843126,-450.0,0.00019996,2]
[359874382,1746397843136,-450.0,0.00019996,2]
[359874384,1746397843145,-450.0,0.00019996,2]
[359874386,1746397843154,-450.0,0.00019996,2]
[359874388,1746397843166,-450.0,0.00019996,2]
[359874390,1746397843175,-450.0,0.00019996,2]
[359874392,1746397843184,-1216.5,0.00019996,2]
[359874394,1746397843194,-450.0,0.00019996,2]
[359874396,1746397843206,-450.0,0.00019996,2]
[359874398,1746397843215,-151.0,0.00019996,2]
[359874400,1746397843225,-450.0,0.00019996,2]
[359874402,1746397843234,-450.0,0.00019996,2]
[359874404,1746397843244,-450.0,0.00019996,2]
[359874406,1746397843254,-450.0,0.00019996,2]
[359874409,1746397843263,-450.0,0.00019996,2]
[359874412,1746397843273,-450.0,0.00019996,2]
[359874415,1746397843283,-450.0,0.00019996,2]
[359874419,1746397843292,-450.0,0.00019996,2]
[359874422,1746397843302,-502.65021227,0.00019996,2]
[359874425,1746397843310,-450.0,0.00019996,2]
[359874427,1746397843319,-566.26,0.00019996,2]
[359874429,1746397843328,-549.36,0.00019996,2]
[359874430,1746397843337,-721.46,0.00019996,2]
[359874431,1746397843346,-490.0,0.00019996,2]
[359874432,1746397843355,-470.0,0.00019996,2]
[359874433,1746397843364,-450.0,0.00019996,2]
[359874434,1746397843373,-470.0,0.00019996,2]
[359874435,1746397843382,-470.0,0.00019996,2]
[359874436,1746397843391,-450.0,0.00019996,2]
[359874437,1746397843400,-470.0,0.00019996,2]
[359874438,1746397843409,-450.0,0.00019996,2]
[359874440,1746397843418,-450.0,0.00019996,2]
[359874442,1746397843427,-470.0,0.00019996,2]
[359874444,1746397843436,-450.0,0.00019996,2]
[359874446,1746397843445,-598.85,0.00019996,2]
[359874448,1746397843454,-230.03,0.00019996,2]
[359874450,1746397843464,-157.69380446,0.00019996,2]
[359874452,1746397843473,-450.0,0.00019996,2]
[359874454,1746397843482,-450.0,0.00019996,2]
[359874456,1746397843492,-450.0,0.00019996,2]
[359874458,1746397843501,-450.0,0.00019996,2]
[359874460,1746397843510,-470.0,0.00019996,2]
[359874462,1746397843519,-470.0,0.00019996,2]
[359874463,1746397843528,-450.0,0.00019996,2]
[359874465,1746397843537,-470.0,0.00019996,2]
[359874467,1746397843546,-160.10649,0.00019996,2]
[359874469,1746397843555,-450.0,0.00019996,2]
[359874471,1746397843564,-450.0,0.00019996,2]
[359874473,1746397843573,-450.0,0.00019996,2]
[359874475,1746397843583,-160.10649,0.00019996,2]
[359874477,1746397843592,-450.0,0.00019996,2]
[359874480,1746397843601,-450.0,0.00019996,2]
[359874481,1746397843611,-470.0,0.00019996,2]
[359874484,1746397843620,-470.0,0.00019996,2]
[359874486,1746397843630,-450.0,0.00019996,2]
[359874488,1746397843640,-310.21,0.00019996,2]
[359874490,1746397843649,-470.0,0.00019996,2]
[359874492,1746397843659,-490.0,0.00019996,2]
[359874493,1746397843668,-9858.55,0.00019996,2]
[359874496,1746397843677,-490.23,0.00019996,2]
[359874498,1746397843686,-867.85,0.00019996,2]
[359874500,1746397843696,-470.0,0.00019996,2]
[359874502,1746397843705,-450.0,0.00019996,2]
[359874503,1746397843714,-450.0,0.00019996,2]
[359874505,1746397843723,-866.75,0.00019996,2]
[359874507,1746397843733,-450.0,0.00019996,2]
[359874509,1746397843742,-151.0,0.00019996,2]
[359874511,1746397843751,-308.74,0.00019996,2]
[359874513,1746397843761,-470.0,0.00019996,2]
[359874516,1746397843770,-470.0,0.00019996,2]
[359874518,1746397843779,-741.16,0.00019996,2]
[359874520,1746397843789,-450.0,0.00019996,2]
[359874522,1746397843799,-470.0,0.00019996,2]
[359874524,1746397843808,-315.98,0.00019996,2]
[359874525,1746397843817,-450.0,0.00019996,2]
[359874528,1746397843827,-470.0,0.00019996,2]
[359874530,1746397843837,-470.0,0.00019996,2]
[359874532,1746397843846,-1035.42,0.00019996,2]
[359874534,1746397843855,-470.0,0.00019996,2]
[359874536,1746397843865,-470.0,0.00019996,2]
[359874538,1746397843874,-450.0,0.00019996,2]
[359874540,1746397843883,-470.0,0.00019996,2]
[359874541,1746397843893,-450.0,0.00019996,2]
[359874544,1746397843902,-450.0,0.00019996,2]
[359874545,1746397843913,-174.653118,0.00019996,2]
[359874547,1746397843922,-450.0,0.00019996,2]
[359874549,1746397843931,-470.0,0.00019996,2]
[359874551,1746397843940,-494.09,0.00019996,2]
[359874553,1746397843950,-470.0,0.00019996,2]